bitfinex/quotes_BTCUSD_20251113
["timestamp","ask_amount","ask_price","bid_price","bid_amount"]
[1763077931306,3.34338374,100010.0,100000.0,1.37774689]
[1763077931489,3.34338374,100010.0,100000.0,0.27238434]
[1763077931490,3.35338373,100010.0,100000.0,0.27238434]
[1763077931639,3.3824088,100010.0,100000.0,0.12013833]
[1763077931888,3.3824088,100010.0,100000.0,0.11813833]
[1763077932141,0.231612,99999.0,99998.0,1e-08]
[1763077932335,0.231612,99999.0,99925.0,0.09816915]
[1763077932336,0.36641874,99960.0,99925.0,0.09816915]
[1763077932557,0.36641874,99960.0,99903.0,0.01789]
[1763077932558,0.05592,99941.0,99911.0,0.01789]
[1763077932782,0.05592,99941.0,99919.0,0.01789]
[1763077932967,0.07381,99941.0,99925.0,0.20014834]
[1763077933165,0.07381,99941.0,99911.0,0.01789]
[1763077933166,0.05592,99941.0,99920.0,0.09816915]
[1763077933369,0.05637992,99941.0,99920.0,0.09816915]
[1763077934183,0.05637992,99941.0,99897.0,0.06493]
[1763077934184,0.05637992,99941.0,99940.0,0.00209]
[1763077934383,0.05637992,99941.0,99940.0,9e-05]
[1763077935201,0.05637992,99941.0,99940.0,0.00309]
[1763077935581,0.05637992,99941.0,99940.0,9e-05]
[1763077935814,0.05637992,99941.0,99940.0,0.00309]
[1763077936017,0.05637992,99941.0,99940.0,0.00209]
[1763077936394,0.05637992,99941.0,99940.0,0.00309]
[1763077936599,0.05637992,99941.0,99940.0,0.00209]
[1763077936998,0.05637992,99941.0,99940.0,0.00309]
[1763077937326,0.25649798,99941.0,99940.0,0.00209]
[1763077937463,0.25649798,99941.0,99940.0,0.00109]
[1763077937671,0.25649798,99941.0,99940.0,0.00285422]
[1763077937874,0.05637992,99941.0,99940.0,0.00285422]
[1763077938401,0.05637992,99941.0,99940.0,0.00585422]
[1763077938600,0.05637992,99941.0,99862.0,0.09816915]
[1763077938939,0.03161,99893.0,99881.0,0.09816915]
[1763077939183,0.54411392,99890.0,99881.0,0.09816915]
[1763077939388,0.05608,99882.0,99881.0,0.09816915]
[1763077939799,0.08658425,99882.0,99881.0,0.09816915]
[1763077939953,0.05608,99882.0,99881.0,0.09816915]
[1763077940161,0.05653935,99882.0,99881.0,0.09816915]
[1763077940356,0.05653935,99882.0,99850.0,0.20030005]
[1763077940357,0.04341874,99881.0,99850.0,0.20030005]
[1763077940540,0.01957,99868.0,99840.0,0.01041602]
[1763077940742,0.54411392,99860.0,99840.0,0.0004]
[1763077940940,0.04584,99867.0,99851.0,0.09816915]
[1763077941145,0.01957,99868.0,99859.0,0.00207327]
[1763077941353,0.01957,99874.0,99867.0,0.02211]
[1763077941565,0.01957,99874.0,99852.0,0.04704]
[1763077941857,0.01957,99874.0,99851.0,0.09816915]
[1763077942213,0.04341874,99851.0,99840.0,0.0004]
[1763077942377,0.07502874,99851.0,99840.0,0.0004]
[1763077942603,0.02447,99853.0,99840.0,0.0004]
[1763077942604,0.03161,99841.0,99840.0,0.0004]
[1763077943376,0.01957,99874.0,99820.0,0.02790803]
[1763077943584,0.54411392,99840.0,99830.0,0.09816915]
[1763077944263,0.04341874,99859.0,99839.0,0.02422]
[1763077944473,0.54411392,99849.0,99839.0,0.02422]
[1763077944626,0.54411392,99850.0,99840.0,0.04704]
[1763077944810,0.54411392,99850.0,99848.0,0.03057]
[1763077945023,0.54411392,99858.0,99848.0,0.03057]
[1763077945222,0.54411392,99858.0,99840.0,0.06704]
[1763077945223,0.54411392,99880.0,99873.0,0.02422]
[1763077945625,0.54411392,99880.0,99856.0,0.02422]
[1763077945626,0.55412593,99880.0,99856.0,0.02422]
[1763077945830,0.01001101,99890.0,99856.0,0.02422]
[1763077946082,0.01001101,99890.0,99857.0,0.04704]
[1763077946300,0.54411392,99880.0,99857.0,0.04704]
[1763077946479,0.54411392,99880.0,99866.0,0.29843573]
[1763077946746,0.54411392,99880.0,99866.0,0.09816915]
[1763077947157,0.54411392,99880.0,99873.0,0.001]
[1763077947562,0.54411392,99880.0,99879.0,0.02422]
[1763077947679,0.74433724,99889.0,99879.0,0.02422]
[1763077947880,0.001,99880.0,99879.0,0.07126]
[1763077948087,0.001,99880.0,99879.0,0.02422]
[1763077948311,0.002,99882.0,99870.0,0.02]
[1763077948543,0.54411392,99880.0,99871.0,0.02422]
[1763077948703,0.54411392,99880.0,99879.0,0.002]
[1763077949256,0.54411392,99880.0,99879.0,0.004]
[1763077949457,0.20023888,99881.0,99879.0,0.004]
[1763077949664,0.20023888,99881.0,99879.0,0.002]
[1763077949873,0.20023273,99884.0,99879.0,0.002]
[1763077949874,0.54411392,99889.0,99879.0,0.002]
[1763077950294,0.04319,99880.0,99879.0,0.002]
[1763077950506,0.2002315,99885.0,99879.0,0.002]
[1763077950718,0.20024023,99881.0,99879.0,0.002]
[1763077950921,0.04319,99880.0,99879.0,0.004]
[1763077951541,0.2002844,99858.0,99832.0,0.03439]
[1763077951684,0.05320201,99880.0,99844.0,0.06737]
[1763077951685,0.54411392,99867.0,99844.0,0.06737]
[1763077951895,0.323,99878.0,99845.0,0.09816915]
[1763077952094,0.54411392,99867.0,99845.0,0.09816915]
[1763077952294,0.2002844,99858.0,99845.0,0.09816915]
[1763077952507,0.2002844,99858.0,99857.0,0.00226305]
[1763077953368,0.20028218,99860.0,99857.0,0.00226305]
[1763077953576,0.54411392,99867.0,99857.0,0.00113854]
[1763077953780,0.2002844,99858.0,99857.0,0.00313854]
[1763077954229,0.2002844,99858.0,99857.0,0.00113854]
[1763077954406,0.2434744,99858.0,99857.0,0.00113854]
[1763077954608,0.2434744,99858.0,99857.0,0.00313854]
[1763077954810,0.2434744,99858.0,99857.0,0.00213854]
[1763077955012,0.2434744,99858.0,99857.0,0.00413854]
[1763077955218,0.2434744,99858.0,99857.0,0.00213854]
[1763077955219,0.60989314,99858.0,99857.0,0.00213854]
[1763077955378,0.60989314,99858.0,99857.0,1e-08]
[1763077955579,0.60989314,99858.0,99857.0,0.00100001]
[1763077956145,0.04341874,99856.0,99824.0,0.06737]
[1763077956351,0.28689514,99858.0,99857.0,0.002]
[1763077956550,0.24370514,99858.0,99857.0,0.002]
[1763077956680,0.04319,99858.0,99828.0,0.09816915]
[1763077956881,0.2002864,99857.0,99829.0,0.06737]
[1763077957138,0.5664764,99858.0,99857.0,0.001]
[1763077957344,0.5321364,99858.0,99857.0,0.001]
[1763077957678,0.5321364,99858.0,99857.0,0.00013857]
[1763077957862,0.5351364,99858.0,99857.0,0.00113857]
[1763077958272,0.5351364,99858.0,99857.0,0.00013857]
[1763077958501,0.003,99858.0,99857.0,0.00113857]
[1763077958715,0.003,99858.0,99857.0,0.00013857]
[1763077958960,0.003,99858.0,99857.0,0.20042497]
[1763077959168,1.0,99879.0,99866.0,0.07864]
[1763077959374,0.05734,99878.0,99857.0,0.00213857]
[1763077959576,0.5748844,99858.0,99857.0,0.00213857]
[1763077959805,0.5748844,99858.0,99795.0,0.20041049]
[1763077959806,0.5748844,99858.0,99738.0,0.0017984]
[1763077959807,0.06659,99773.0,99738.0,0.0017984]
[1763077960016,0.3034521,99739.0,99738.0,0.00225747]
[1763077960228,0.04974,99739.0,99700.0,4e-05]
[1763077960430,0.02999997,99730.0,99710.0,0.09816915]
[1763077960635,0.57411389,99720.0,99710.0,0.09816915]
[1763077960839,0.20057596,99713.0,99710.0,0.09816915]
[1763077961074,0.57411389,99720.0,99677.0,0.03439]
[1763077961075,0.02999997,99710.0,99677.0,0.03439]
[1763077961265,0.04319,99711.0,99677.0,0.03439]
[1763077961266,0.54411392,99697.0,99677.0,0.03439]
[1763077961530,0.05784,99737.0,99699.0,0.04425]
[1763077961700,0.54411392,99710.0,99690.0,0.02]
[1763077961904,0.2005703,99716.0,99687.0,0.10340729]
[1763077961905,0.54411392,99700.0,99687.0,0.10340729]
[1763077962333,0.20060063,99701.0,99687.0,0.10340729]
[1763077962538,0.20062291,99690.0,99687.0,0.10486541]
[1763077962746,0.20062595,99688.0,99687.0,0.10386541]
[1763077963131,0.20062595,99688.0,99687.0,0.09862727]
[1763077963336,0.28723469,99688.0,99687.0,0.00045812]
[1763077963548,0.24381595,99688.0,99687.0,0.00045812]
[1763077963937,0.20062595,99688.0,99687.0,0.00045812]
[1763077964135,0.20062595,99688.0,99687.0,0.00145812]
[1763077964328,0.24381595,99688.0,99687.0,0.00145812]
[1763077965382,0.07368874,99709.0,99687.0,0.00145812]
[1763077965591,0.20062377,99690.0,99687.0,0.00045812]
[1763077965792,0.54411392,99697.0,99687.0,0.00245812]
[1763077965793,0.20062595,99688.0,99687.0,0.00245812]
[1763077966050,0.20060985,99696.0,99687.0,0.00245812]
[1763077966271,0.200623,99691.0,99687.0,0.00245812]
[1763077966482,0.20061991,99691.0,99687.0,0.00045812]
[1763077966661,0.20062304,99690.0,99687.0,0.00045812]
[1763077966879,0.04319,99688.0,99687.0,0.00045812]
[1763077967211,0.08660874,99688.0,99687.0,0.00045812]
[1763077967427,0.08660874,99688.0,99687.0,0.00145812]
[1763077968473,0.20162279,99690.0,99687.0,0.00145812]
[1763077968732,0.54411392,99697.0,99687.0,0.00145812]
[1763077968941,0.54411392,99697.0,99688.0,0.09816915]
[1763077969221,0.23085568,99709.0,99688.0,0.09816915]
[1763077969410,0.54411392,99700.0,99687.0,0.00045812]
[1763077969611,0.03027,99709.0,99698.0,0.09816915]
[1763077969811,0.20060079,99701.0,99698.0,0.09816915]
[1763077969940,0.20056629,99718.0,99698.0,0.09816915]
[1763077970151,0.54411392,99710.0,99699.0,0.06737]
[1763077970350,0.20058369,99709.0,99699.0,0.06737]
[1763077970674,0.54411392,99710.0,99699.0,0.06737]
[1763077971056,0.40100618,99750.0,99699.0,0.06737]
[1763077971268,0.54411392,99720.0,99713.0,0.09816915]
[1763077971466,0.54411392,99720.0,99699.0,0.06737]
[1763077971467,0.01002807,99720.0,99699.0,0.09816915]
[1763077971677,0.20059888,99702.0,99699.0,0.09816915]
[1763077971882,0.54411392,99709.0,99699.0,0.09916915]
[1763077972096,0.54411392,99710.0,99699.0,0.09916915]
[1763077972293,0.54411392,99710.0,99699.0,0.09886715]
[1763077972616,0.54411392,99710.0,99699.0,0.09786715]
[1763077973602,0.54411392,99710.0,99699.0,0.09886715]
[1763077974021,0.01002606,99740.0,99709.0,0.04425]
[1763077974171,0.20054321,99730.0,99715.0,0.09816915]
[1763077974386,0.54411392,99720.0,99715.0,0.09816915]
[1763077975029,0.74467579,99720.0,99715.0,0.09816915]
[1763077975256,0.54411392,99720.0,99715.0,0.09816915]
[1763077975688,0.54411392,99720.0,99715.0,0.09916915]
[1763077976364,0.54411392,99725.0,99724.0,0.03439]
[1763077976603,0.54411392,99734.0,99724.0,0.03439]
[1763077977488,0.20053691,99733.0,99730.0,0.09816915]
[1763077977693,0.20053945,99731.0,99730.0,0.09816915]
[1763077977918,0.54411392,99740.0,99730.0,0.09816915]
[1763077978117,0.02757,99747.0,99730.0,0.09816915]
[1763077978591,0.54411392,99740.0,99730.0,0.09816915]
[1763077978994,0.54411392,99740.0,99730.0,0.09916915]
[1763077979371,0.01002405,99760.0,99732.0,0.20053594]
[1763077979573,0.01002405,99760.0,99731.0,0.06737]
[1763077979574,0.54411392,99740.0,99731.0,0.06737]
[1763077979990,0.54411392,99740.0,99739.0,0.04425]
[1763077980188,0.54411392,99750.0,99740.0,0.02]
[1763077980368,0.54411392,99760.0,99749.0,0.09816915]
[1763077980572,0.54411392,99759.0,99749.0,0.09816915]
[1763077981190,0.54411392,99760.0,99749.0,0.09816915]
[1763077981431,0.55513797,99760.0,99730.0,0.09816915]
[1763077981619,0.54411392,99740.0,99730.0,0.09816915]
[1763077981837,0.00031,99749.0,99730.0,0.09816915]
[1763077981838,0.01005,99769.0,99731.0,0.06984]
[1763077982011,0.30057521,99809.0,99765.0,0.09816915]
[1763077982219,0.30057521,99809.0,99768.0,0.04773]
[1763077982220,0.54411392,99770.0,99768.0,0.04773]
[1763077982421,0.54411392,99780.0,99768.0,0.05213652]
[1763077982646,0.54411392,99780.0,99777.0,0.03469]
[1763077982870,0.20044097,99780.0,99779.0,0.00412425]
[1763077983080,0.20044097,99780.0,99742.0,0.29352578]
[1763077983081,0.00999999,99770.0,99763.0,0.09816915]
[1763077983346,0.323,99764.0,99763.0,0.09830675]
[1763077983553,0.20047311,99764.0,99763.0,0.0001376]
[1763077983782,0.68140185,99764.0,99763.0,0.0001376]
[1763077984012,0.68140185,99764.0,99705.0,0.23498025]
[1763077984013,0.20053341,99734.0,99705.0,0.03439]
[1763077984522,0.31522086,99734.0,99708.0,0.20058391]
[1763077984525,0.20055829,99722.0,99705.0,0.03439]
[1763077984769,0.20056343,99720.0,99705.0,0.03439]
[1763077985006,0.03523,99719.0,99705.0,0.03439]
[1763077985246,0.08274,99719.0,99698.0,0.03452]
[1763077985931,0.067,99726.0,99706.0,0.20058897]
[1763077986152,0.067,99726.0,99718.0,0.09916915]
[1763077986624,0.54411392,99728.0,99718.0,0.09916915]
[1763077986828,0.067,99726.0,99718.0,0.09916915]
[1763077987226,0.03523,99729.0,99722.0,0.2005564]
[1763077987532,0.03523,99729.0,99721.0,0.2005595]
[1763077987736,0.55411391,99730.0,99718.0,0.09916915]
[1763077987937,0.00013745,99734.0,99729.0,0.03269]
[1763077988142,0.00013745,99734.0,99733.0,0.09816915]
[1763077989516,0.00013745,99734.0,99733.0,0.16537915]
[1763077989917,0.00013745,99734.0,99733.0,0.166559]
[1763077990118,0.00013745,99734.0,99733.0,0.099349]
[1763077990562,0.00013745,99734.0,99733.0,0.101349]
[1763077990753,0.00013745,99734.0,99733.0,0.099349]
[1763077991415,0.00013745,99734.0,99733.0,0.101109]
[1763077991622,0.00013745,99734.0,99733.0,0.103109]
[1763077992078,0.00013745,99734.0,99733.0,0.101109]
[1763077992288,0.00013745,99734.0,99733.0,0.103109]
[1763077992700,0.00013745,99734.0,99733.0,0.101109]
[1763077992922,0.00013745,99734.0,99733.0,0.099109]
[1763077993128,0.44484659,99790.0,99760.0,0.01002405]
[1763077993332,0.01013858,99790.0,99779.0,0.09816915]
[1763077993545,0.43498519,99790.0,99789.0,0.03452]
[1763077993753,0.01013858,99790.0,99779.0,0.09816915]
[1763077993979,0.20042673,99788.0,99779.0,0.09816915]
[1763077994190,0.63527052,99789.0,99779.0,0.09816915]
[1763077994415,0.2004249,99788.0,99779.0,0.09816915]
[1763077994627,0.2004269,99787.0,99779.0,0.09816915]
[1763077994841,0.20043836,99782.0,99779.0,0.09816915]
[1763077995253,0.20042719,99787.0,99779.0,0.09816915]
[1763077995456,0.00013859,99790.0,99779.0,0.09916915]
[1763077995687,0.00013859,99790.0,99781.0,0.20043896]
[1763077995895,0.20043238,99785.0,99779.0,0.09816915]
[1763077996093,0.20042613,99788.0,99779.0,0.09816915]
[1763077996296,0.01013858,99790.0,99779.0,0.09916915]
[1763077996438,0.01013858,99790.0,99781.0,0.20043857]
[1763077996652,0.64540768,99790.0,99788.0,1.0]
[1763077996857,0.21056092,99790.0,99788.0,1.0]
[1763077997074,0.00013859,99790.0,99788.0,1.0]
[1763077997483,0.00013859,99790.0,99788.0,1.20042465]
[1763077997685,0.00013859,99790.0,99788.0,1.20042485]
[1763077997887,0.00013859,99790.0,99788.0,1.0]
[1763077998664,0.00013859,99790.0,99788.0,1.001]
[1763077998665,0.28560289,99789.0,99788.0,1.001]
[1763077999058,0.28560289,99789.0,99788.0,1.0]
[1763077999248,0.28560289,99789.0,99788.0,1.001]
[1763077999607,0.28560289,99789.0,99788.0,1.002]
[1763077999691,0.28560289,99789.0,99788.0,1.001]
[1763077999692,0.60860289,99789.0,99788.0,1.001]
[1763078000575,0.06684,99789.0,99788.0,1.0]
[1763078000782,0.00013859,99790.0,99788.0,1.0]
[1763078000990,0.06684,99789.0,99788.0,1.0]
[1763078001199,0.00013859,99790.0,99788.0,1.0]
[1763078001706,0.00013859,99790.0,99789.0,0.20042289]
[1763078001965,0.00013859,99790.0,99788.0,1.20042334]
[1763078002168,0.00013859,99790.0,99788.0,1.20142334]
[1763078002575,0.00013859,99790.0,99788.0,1.20242334]
[1763078002782,0.00013859,99790.0,99788.0,1.20142334]
[1763078002985,0.00013859,99790.0,99788.0,1.001]
[1763078003102,0.00013859,99790.0,99788.0,1.002]
[1763078003329,0.00013859,99790.0,99788.0,1.001]
[1763078003857,0.00013859,99790.0,99789.0,0.001]
[1763078004264,0.00013859,99790.0,99789.0,0.06721]
[1763078005302,0.00013859,99790.0,99789.0,0.06921]
[1763078005508,0.00013859,99790.0,99789.0,0.07021]
[1763078005697,0.00013859,99790.0,99789.0,0.06921]
[1763078006318,0.00213859,99790.0,99789.0,0.06921]
[1763078006492,0.00213859,99790.0,99789.0,0.06721]
[1763078007155,0.00213859,99790.0,99789.0,0.06921]
[1763078007942,0.00013859,99790.0,99789.0,0.06921]
[1763078008764,0.00213859,99790.0,99789.0,0.06921]
[1763078008963,0.00013859,99790.0,99789.0,0.002]
[1763078009173,0.00013859,99790.0,99789.0,0.004]
[1763078009376,0.00013859,99790.0,99789.0,0.002]
[1763078009797,0.00013859,99790.0,99789.0,0.004]
[1763078010003,0.00013859,99790.0,99789.0,0.002]
[1763078010204,0.00013859,99790.0,99788.0,1.0]
[1763078010418,0.20056111,99790.0,99789.0,0.001]
[1763078010618,0.20056111,99790.0,99789.0,0.002]
[1763078011044,0.00013859,99790.0,99789.0,0.001]
[1763078011399,0.00013859,99790.0,99788.0,1.001]
[1763078011806,0.00013859,99790.0,99788.0,1.002]
[1763078012018,0.00013859,99790.0,99788.0,0.92893]
[1763078012019,0.05004,99789.0,99788.0,0.92893]
[1763078012379,2.41645874,99789.0,99788.0,1e-08]
[1763078012658,2.43503959,99789.0,99788.0,1e-08]
[1763078013241,2.43503959,99789.0,99770.0,0.00023076]
[1763078013242,0.52345905,99771.0,99770.0,0.00023076]
[1763078013440,0.68367779,99771.0,99770.0,0.00023076]
[1763078014220,0.61691779,99771.0,99770.0,0.00023076]
[1763078014423,0.68367779,99771.0,99770.0,0.00023076]
[1763078014748,0.57349905,99771.0,99770.0,0.00023076]
[1763078014951,0.64125905,99771.0,99770.0,0.00023076]
[1763078015587,0.64121905,99771.0,99770.0,0.00023076]
[1763078016393,0.64021905,99771.0,99770.0,0.00023076]
[1763078017379,0.65882664,99771.0,99770.0,0.00023076]
[1763078018001,0.38972,99771.0,99770.0,0.00023076]
[1763078018209,0.2004455,99778.0,99770.0,0.00023076]
[1763078018210,0.06954,99779.0,99770.0,0.00023076]
[1763078018464,0.08534485,99778.0,99770.0,0.00023076]
[1763078018626,0.001,99771.0,99770.0,0.00023076]
[1763078019214,0.001,99771.0,99770.0,0.09839991]
[1763078019400,0.00999999,99780.0,99771.0,0.03638]
[1763078020360,0.00999999,99780.0,99772.0,0.20045704]
[1763078020567,0.00999999,99780.0,99778.0,0.20044409]
[1763078020763,0.43498519,99790.0,99771.0,0.11061]
[1763078020764,0.01013858,99790.0,99771.0,0.11061]
[1763078021068,0.44498518,99790.0,99780.0,0.20044038]
[1763078021309,0.00013859,99790.0,99789.0,0.04584]
[1763078021950,0.00013859,99790.0,99786.0,0.09816915]
[1763078022151,0.00013859,99790.0,99787.0,0.02616]
[1763078022301,0.2004269,99787.0,99786.0,0.09816915]
[1763078022876,0.20042409,99789.0,99786.0,0.09816915]
[1763078023092,0.20042584,99788.0,99786.0,0.09816915]
[1763078023300,0.2004269,99787.0,99786.0,0.09816915]
[1763078023472,0.20043092,99785.0,99770.0,0.09839991]
[1763078023696,0.14032,99787.0,99770.0,0.09839991]
[1763078023697,0.44484659,99780.0,99770.0,0.09839991]
[1763078024059,0.4348466,99780.0,99779.0,0.03638]
[1763078024265,0.06668,99784.0,99779.0,0.03638]
[1763078024663,0.20043986,99781.0,99779.0,0.03638]
[1763078024820,0.20042891,99786.0,99779.0,0.03638]
[1763078025020,0.20043345,99784.0,99779.0,0.03638]
[1763078025279,0.20043615,99783.0,99779.0,0.03638]
[1763078025681,0.20043972,99781.0,99779.0,0.03638]
[1763078025894,0.06668,99787.0,99779.0,0.03638]
[1763078026093,0.06668,99787.0,99779.0,0.03738]
[1763078026296,0.20042939,99786.0,99779.0,0.03738]
[1763078026496,0.26706793,99787.0,99779.0,0.03738]
[1763078026695,0.20043014,99786.0,99779.0,0.03638]
[1763078027022,0.2004269,99787.0,99779.0,0.03638]
[1763078027221,0.0666,99788.0,99780.0,0.20043972]
[1763078027424,0.4348466,99800.0,99779.0,0.03738]
[1763078027550,0.00013859,99790.0,99789.0,0.04584]
[1763078028363,0.00013859,99790.0,99789.0,0.12007]
[1763078028572,0.00013859,99790.0,99789.0,0.07423]
[1763078028782,0.00013859,99790.0,99788.0,0.20042371]
[1763078029188,0.00013859,99790.0,99789.0,0.07423]
[1763078029910,0.00013859,99790.0,99789.0,0.07523]
[1763078030385,0.00013859,99790.0,99789.0,0.07423]
[1763078031212,0.00613859,99790.0,99789.0,0.07423]
[1763078031612,0.00813859,99790.0,99789.0,0.07423]
[1763078031969,0.00213859,99790.0,99789.0,0.07423]
[1763078032370,0.00413859,99790.0,99789.0,0.07423]
[1763078033939,0.00413859,99790.0,99788.0,0.02616]
[1763078034327,0.00413859,99790.0,99785.0,0.09816915]
[1763078034641,0.00013859,99790.0,99786.0,0.20042755]
[1763078034847,0.00013859,99790.0,99789.0,0.001]
[1763078034980,0.00013859,99790.0,99789.0,0.003]
[1763078035185,0.00013859,99790.0,99789.0,0.07623]
[1763078035391,0.00013859,99790.0,99789.0,0.07423]
[1763078036539,0.00013859,99790.0,99789.0,0.07623]
[1763078037508,0.00013859,99790.0,99789.0,0.07723]
[1763078037706,0.00013859,99790.0,99789.0,0.07423]
[1763078038177,0.00113859,99790.0,99789.0,0.07423]
[1763078038380,0.00313859,99790.0,99789.0,0.07423]
[1763078041397,0.00313859,99790.0,99785.0,0.09816915]
[1763078041594,0.20042784,99787.0,99785.0,0.09816915]
[1763078041902,0.00313859,99790.0,99786.0,0.07186]
[1763078042125,0.03572783,99846.0,99786.0,0.07186]
[1763078042126,0.00999999,99830.0,99810.0,0.02]
[1763078042342,0.00999999,99820.0,99801.0,0.07186]
[1763078042560,0.00999999,99820.0,99818.0,0.20036284]
[1763078042776,0.00999999,99820.0,99819.0,0.03518]
[1763078042995,0.44530859,99830.0,99819.0,0.03518]
[1763078043219,0.44530859,99830.0,99820.0,0.20036011]
[1763078043426,0.44530859,99830.0,99819.0,0.03518]
[1763078043650,0.01046199,99830.0,99823.0,0.29852195]
[1763078043870,0.000462,99830.0,99823.0,0.09816915]
[1763078044307,0.000462,99830.0,99826.0,0.20034757]
[1763078044524,0.000462,99830.0,99823.0,0.09816915]
[1763078045048,0.20034637,99828.0,99823.0,0.09916915]
[1763078045127,0.20034304,99829.0,99824.0,0.03518]
[1763078045453,0.20080276,99830.0,99824.0,0.23553212]
[1763078045454,0.01046199,99830.0,99824.0,0.23553212]
[1763078045768,0.01046199,99830.0,99828.0,0.20034298]
[1763078045769,0.000462,99830.0,99828.0,0.20034298]
[1763078045972,0.000462,99830.0,99828.0,0.20034459]
[1763078047080,0.000462,99830.0,99829.0,0.07023]
[1763078047294,0.000462,99830.0,99824.0,0.03618]
[1763078047502,0.000462,99830.0,99828.0,0.001]
[1763078047503,0.01046199,99830.0,99828.0,0.001]
[1763078047722,0.21080411,99830.0,99828.0,0.001]
[1763078047958,0.01046199,99830.0,99824.0,0.03518]
[1763078048163,0.20034258,99829.0,99828.0,0.002]
[1763078048579,0.20034258,99829.0,99824.0,0.03518]
[1763078048580,0.20035061,99825.0,99824.0,0.03518]
[1763078048784,0.20034876,99826.0,99824.0,0.03518]
[1763078049684,0.000462,99830.0,99824.0,0.03518]
[1763078050078,0.000462,99830.0,99826.0,0.2003486]
[1763078050269,0.000462,99830.0,99826.0,0.20034718]
[1763078050550,0.000462,99830.0,99828.0,0.001]
[1763078050751,0.000462,99830.0,99828.0,0.20034356]
[1763078050886,0.000462,99830.0,99829.0,0.07023]
[1763078052294,0.000462,99830.0,99829.0,0.07223]
[1763078053648,0.000462,99830.0,99829.0,0.07023]
[1763078053790,0.000462,99830.0,99829.0,0.07223]
[1763078053996,0.2002804,99860.0,99859.0,0.03416]
[1763078054359,0.00013851,99860.0,99859.0,0.03416]
[1763078055150,0.00013851,99860.0,99859.0,0.03516]
[1763078055455,0.00013851,99860.0,99859.0,0.03616]
[1763078057056,0.00013851,99860.0,99859.0,0.002]
[1763078057857,0.20028239,99859.0,99851.0,0.09816915]
[1763078058061,0.20029643,99852.0,99851.0,0.09816915]
[1763078058261,0.20029333,99854.0,99851.0,0.09816915]
[1763078058660,0.20029547,99853.0,99851.0,0.09816915]
[1763078059361,0.20029333,99854.0,99851.0,0.09816915]
[1763078059362,0.20029389,99854.0,99851.0,0.09816915]
[1763078059566,0.20029538,99853.0,99851.0,0.09816915]
[1763078060469,0.20029538,99853.0,99851.0,0.09916915]
[1763078060628,0.20029538,99853.0,99851.0,0.10016915]
[1763078060854,0.20029538,99853.0,99851.0,0.09916915]
[1763078061058,0.20029538,99853.0,99851.0,0.10016915]
[1763078061658,0.06636,99852.0,99851.0,0.10016915]
[1763078062580,0.06636,99852.0,99851.0,0.09916915]
[1763078062763,0.06636,99852.0,99851.0,0.10016915]
[1763078062967,0.06636,99852.0,99851.0,0.09916915]
[1763078063265,0.06636,99852.0,99851.0,0.10016915]
[1763078066098,0.26665643,99852.0,99851.0,0.10016915]
[1763078068798,0.06636,99852.0,99851.0,0.10016915]
[1763078069392,0.00013851,99860.0,99851.0,0.10016915]
[1763078069590,0.20029508,99853.0,99851.0,0.10016915]
[1763078070212,0.20029508,99853.0,99851.0,0.09916915]
[1763078070669,0.06628,99859.0,99851.0,0.09916915]
[1763078070870,0.2002952,99853.0,99851.0,0.10016915]
[1763078071308,0.2002952,99853.0,99851.0,1.10016915]
[1763078071517,0.2002952,99853.0,99851.0,1.09916915]
[1763078071977,0.20029466,99855.0,99851.0,1.09916915]
[1763078072360,0.20029475,99853.0,99851.0,1.10016915]
[1763078072617,0.06628,99852.0,99851.0,1.10016915]
[1763078072834,0.06628,99852.0,99851.0,1.09916915]
[1763078073057,0.06628,99852.0,99851.0,1.10016915]
[1763078073612,0.06628,99852.0,99851.0,1.09916915]
[1763078073812,0.20029564,99853.0,99851.0,1.09916915]
[1763078073964,0.20029564,99853.0,99851.0,1.10016915]
[1763078074348,0.11382,99852.0,99851.0,1.002]
[1763078074554,0.11382,99852.0,99851.0,1.001]
[1763078074734,0.43682,99852.0,99851.0,1.001]
[1763078074929,0.43682,99852.0,99851.0,1.002]
[1763078075184,0.43682,99852.0,99851.0,1.001]
[1763078076373,0.43682,99852.0,99851.0,1.0]
[1763078080933,0.63711643,99852.0,99851.0,1.0]
[1763078081154,0.57087643,99852.0,99851.0,1.0]
[1763078081359,0.63707643,99852.0,99851.0,1.0]
[1763078082138,0.63703643,99852.0,99851.0,1.0]
[1763078082467,0.57087643,99852.0,99851.0,1.0]
[1763078082714,0.26645643,99852.0,99851.0,1.0]
[1763078085201,0.20029564,99853.0,99851.0,1.0]
[1763078085433,0.06616,99852.0,99851.0,1.0]
[1763078085653,0.26645643,99852.0,99851.0,1.0]
[1763078087122,0.26641643,99852.0,99851.0,1.0]
[1763078087548,0.20028239,99859.0,99851.0,1.0]
[1763078087774,0.00013851,99860.0,99851.0,1.0]
[1763078087775,0.20029152,99855.0,99851.0,1.0]
[1763078087974,0.06612,99858.0,99851.0,1.0]
[1763078088208,0.20029643,99852.0,99851.0,1.0]
[1763078090589,0.20029643,99852.0,99851.0,1.001]
[1763078093607,0.24787643,99852.0,99851.0,1.001]
[1763078096407,0.57087643,99852.0,99851.0,1.001]
[1763078096989,0.63691643,99852.0,99851.0,1.001]
[1763078097137,0.63691643,99852.0,99851.0,1.0]
[1763078098171,0.57087643,99852.0,99851.0,1.0]
[1763078098372,0.26633643,99852.0,99851.0,1.0]
[1763078098577,0.20029643,99852.0,99851.0,1.0]
[1763078098779,0.26633643,99852.0,99851.0,1.0]
[1763078099242,0.2002864,99857.0,99851.0,1.0]
[1763078099243,0.20029253,99854.0,99851.0,1.0]
[1763078099445,0.00013851,99860.0,99851.0,1.0]
[1763078099595,0.20029254,99854.0,99851.0,1.0]
[1763078099966,0.06604,99853.0,99852.0,0.20029638]
[1763078100424,0.066,99853.0,99851.0,1.06191]
[1763078100853,0.20029565,99853.0,99851.0,1.06191]
[1763078101076,0.20029287,99854.0,99851.0,1.0]
[1763078101288,0.066,99858.0,99852.0,0.001]
[1763078101507,0.20029335,99854.0,99852.0,0.001]
[1763078101740,0.20029335,99854.0,99851.0,1.0]
[1763078101975,0.00013851,99860.0,99852.0,0.06191]
[1763078102219,0.00013851,99860.0,99859.0,0.09816915]
[1763078102465,0.00013851,99860.0,99851.0,1.001]
[1763078102696,0.20029618,99853.0,99851.0,1.001]
[1763078103128,0.20029618,99853.0,99851.0,1.002]